[Event "XVI Memorial Lezcano Montalvo 2024"]
[Site "Gran Canaria"]
[Date "2024.03.25"]
[Round "3.4"]
[White "Strikovic, Aleksa"]
[Black "Perez Guerra, Raul"]
[Result "0-1"]
[ECO "A21"]
[WhiteElo "2430"]
[BlackElo "2250"]
[Annotator "TA"]
[PlyCount "113"]
[EventDate "2024.03.23"]
[EventType "swiss"]
[EventCountry "ESP"]
[SourceTitle "playchess.com"]
[Source "ChessBase"]
[SourceQuality "1"]
[TimeControl "5400+30"]

{[%evp 12,113,0,0,0,15,0,-18,46,37,50,0,0,0,75,13,11,12,5,0,0,0,0,0,8,0,29,18,15,29,18,12,12,-65,-76,-64,-69,-68,-77,-76,-85,-95,-84,-97,-63,-122,-64,-68,-66,-67,-26,-124,-134,-118,-129,-123,-115,-238,-120,-116,-110,-104,-107,-111,-111,-111,-112,-111,-111,-111,-111,-111,-111,-111,-111,-111,-111,-169,-169,-169,-164,-164,-164,-373,-373,-29969,-29970,-29969,-29970,-29971,-29971,-29971,-29972,-29975,-29975,-29976,-29975,-29975,-29976,-29976,-29976,-29980,-29981,-29978]} 1. c4 {[%emt 0:00:24]} e5 {[%emt 0:00:32]} 2. g3 {[%emt 0:00:03]} d6 {[%emt 0:00:37]} 3. Bg2 {[%emt 0:00:24]} f5 {[%emt 0:01:21]} 4. Nc3 {[%emt 0:00:20]} Nf6 {[%emt 0:00:13]} 5. d3 {[%emt 0:00:11]} Be7 {[%emt 0:00:17]} 6. e4 {[%emt 0:00:31]} O-O {[%emt 0:00:32]} 7. Nge2 {[%emt 0:00:07]} c6 {[%emt 0:02:32]} 8. O-O {[%emt 0:00:36]} Qe8 {[%emt 0:00:05]} 9. d4 {[%emt 0:08:09]} Qg6 {[%emt 0:05:53]} (9... fxe4 $11 10. Bg5 (10. Nxe4 Nxe4 11. Bxe4 Bh3 $11) 10... Nbd7) 10. exf5 $14 {[%emt 0:07:13]} Bxf5 {[%emt 0:00:09] [#]} 11. c5 {[%emt 0:00:05]} (11. Qb3 $1 $14) 11... Bc2 $11 {[%emt 0:08:28]} 12. Qd2 {[%emt 0:02:24]} Nbd7 {[%emt 0:02:54]} (12... Na6 $11) 13. cxd6 {[%emt 0:08:02]} (13. f4 $16 {And now cxd6 would win.} d5 14. fxe5 (14. dxe5 Bxc5+ 15. Kh1 Ng4 $19)) 13... Bxd6 $11 {[%emt 0:00:06]} 14. dxe5 {[%emt 0:00:06]} Bxe5 {[%emt 0:00:06]} 15. Nf4 {[%emt 0:00:05]} Bxf4 {[%emt 0:04:31]} 16. Qxf4 {[%emt 0:00:05]} Rae8 {[%emt 0:05:48]} 17. Qg5 {[%emt 0:11:47]} Qd3 {[%emt 0:03:34]} (17... Ne5 {simplifies} 18. Qxg6 Bxg6 19. b3 Bh5) 18. Bf4 {[%emt 0:06:49]} h6 {[%emt 0:02:18]} 19. Qa5 {[%emt 0:00:19]} g5 $1 {[%emt 0:02:23]} 20. Be3 {[%emt 0:08:07]} Ng4 {[%emt 0:21:31]} 21. Bxa7 {[%emt 0:05:47]} Nge5 {[%emt 0:01:28]} 22. f4 {[%emt 0:09:00]} ({White should play} 22. Qc7 $11) 22... b6 $1 $15 {[%emt 0:04:14]} 23. Qb4 {[%emt 0:02:00]} (23. Bxb6 Nc4 24. Qb4 Ndxb6 (24... Ncxb6 25. Bxc6 Re6 26. Bg2 $15) 25. fxg5 Rxf1+ (25... hxg5 26. Rxf8+ Rxf8 27. Qe7 $17) 26. Rxf1 Qe3+ (26... hxg5 27. Qc5 $17) 27. Kh1 hxg5 $19 (27... Qxg5 28. Bxc6 Qd2 29. Bd5+ Nxd5 30. Qxc4 $19) (27... Bd3 $2 28. Rg1 $19)) 23... c5 {[%emt 0:06:20]} 24. Qe4 $1 {[%emt 0:11:11]} Qxf1+ $1 {[%emt 0:01:56]} 25. Rxf1 {[%emt 0:00:16]} Bxe4 {[%emt 0:00:02]} 26. Bxe4 {[%emt 0:00:08]} gxf4 {[%emt 0:00:43]} 27. gxf4 {[%emt 0:00:15]} Ng4 {[%emt 0:00:23]} 28. Bc6 {[%emt 0:01:14] [#]} ({White should try} 28. h3 $1 $15 Ngf6 29. Bc6) 28... Ngf6 {[%emt 0:01:29]} (28... Re7 $1 $17 29. Bxd7 Rxd7 30. Bxb6 Rb8 31. Bxc5 Rxb2) 29. Rd1 $15 {[%emt 0:03:18]} Re7 {[%emt 0:01:13]} 30. Rd6 {[%emt 0:02:20]} Kg7 {[%emt 0:08:08]} (30... Rg7+ $5 31. Kh1 Re8 $19) 31. Bb5 {[%emt 0:02:29]} (31. a4 $11) 31... Ra8 $17 {[%emt 0:01:05]} 32. Bxb6 {[%emt 0:00:50]} Nxb6 {[%emt 0:00:04]} 33. Rxb6 {[%emt 0:00:04]} Rd8 {[%emt 0:00:02]} 34. Be2 {[%emt 0:12:06]} (34. f5 $17 {might work better.}) 34... Rd2 {[%emt 0:02:16]} (34... Nd5 $19 35. Nxd5 Rxe2) 35. Kf2 $17 {[%emt 0:00:02]} Nd5 {[%emt 0:04:56]} 36. Rd6 {[%emt 0:00:30]} Nxc3 {[%emt 0:00:05]} (36... Rxb2 $2 {is the wrong capture.} 37. Rxd5 (37. Nxd5 $2 Rexe2+ 38. Kf3 Rxh2 $19) 37... Rc2 38. Rd3 $18 (38. Rxc5 Rexe2+ 39. Nxe2 Rxc5 $15)) (36... Re3 {with more complications.} 37. Rd7+ Kf8 38. Rd8+ Kf7) 37. Rxd2 {[%emt 0:00:04]} Ne4+ {[%emt 0:00:03]} 38. Ke1 {[%emt 0:00:06]} Nxd2 {[%emt 0:00:01]} 39. Kxd2 {[%emt 0:00:06]} Re4 {[%emt 0:00:23]} 40. b3 {[%emt 0:01:14]} Rxf4 {[%emt 0:00:53]} 41. a4 {[%emt 0:00:01]} Kf6 {[%emt 0:01:55]} 42. a5 {[%emt 0:00:11]} Ke5 {[%emt 0:00:03]} 43. a6 {[%emt 0:00:19]} Rf7 {[%emt 0:00:04]} 44. Kc3 {[%emt 0:00:09]} (44. Ke3 $17) 44... Kd6 $19 {[%emt 0:00:52]} 45. b4 {[%emt 0:02:49]} cxb4+ {[%emt 0:00:41]} 46. Kxb4 {[%emt 0:00:01]} Kc6 {[%emt 0:00:16]} 47. h4 $2 {[%emt 0:00:44]} (47. h3 {keeps fighting.}) 47... Rf4+ $19 {[%emt 0:01:11]} 48. Ka5 $2 {[%emt 0:00:06] [#]} (48. Kc3 $19 Rxh4 49. Kd3) 48... h5 $1 {[%emt 0:01:38]} (48... Rxh4 49. Bf3+ Kc7 50. a7 $16) 49. Bd1 {[%emt 0:00:51]} Kc7 {[%emt 0:00:54]} ({Inferior is} 49... Rxh4 50. Bf3+ Kc7 51. a7 $11) 50. Kb5 {[%emt 0:00:32]} Rxh4 {[%emt 0:02:01]} 51. Bf3 {[%emt 0:00:07]} Kb8 {[%emt 0:00:14]} 52. Kc6 {[%emt 0:01:17]} Ka7 {[%emt 0:01:28]} 53. Kd5 {[%emt 0:00:13]} Rf4 {[%emt 0:00:18]} 54. Bg2 {[%emt 0:00:42]} h4 {[%emt 0:00:56]} 55. Ke5 {[%emt 0:00:02]} Rg4 {[%emt 0:02:05]} 56. Bf3 {[%emt 0:00:21]} Rg1 {[%emt 0:00:22]} 57. Kd4 {[%emt 0:01:48]} 0-1

[Event "XVI Memorial Lezcano Montalvo 2024"]
[Site "Gran Canaria"]
[Date "2024.03.25"]
[Round "3.6"]
[White "Fiorito, Joaquin"]
[Black "Calzetta Ruiz, Monica"]
[Result "1-0"]
[ECO "B31"]
[WhiteElo "2409"]
[BlackElo "2239"]
[Annotator "TA"]
[PlyCount "51"]
[EventDate "2024.03.23"]
[EventType "swiss"]
[EventCountry "ESP"]
[SourceTitle "playchess.com"]
[Source "ChessBase"]
[SourceQuality "1"]
[TimeControl "5400+30"]

{[%evp 21,50,38,31,25,45,8,54,54,212,216,210,210,888,74,81,6,496,488,1138,1138,1109,1143,1122,1112,1142,1122,2044,1983,29998,29999,29999]} 1. e4 {[%emt 0:00:02]} c5 {[%emt 0:00:06]} 2. Nf3 {[%emt 0:00:04]} Nc6 {[%emt 0:00:07]} 3. Bb5 {[%emt 0:00:03]} g6 {[%emt 0:00:16]} 4. O-O {[%emt 0:00:05]} Bg7 {[%emt 0:00:19]} 5. c3 {[%emt 0:00:06]} e5 {[%emt 0:01:21]} 6. d4 {[%emt 0:00:04]} exd4 {[%emt 0:00:43]} 7. cxd4 {[%emt 0:00:10]} cxd4 {[%emt 0:00:11]} 8. Bf4 {[%emt 0:00:07]} Nge7 {[%emt 0:00:18]} 9. Bd6 {[%emt 0:00:05]} O-O {[%emt 0:00:49]} 10. Nbd2 {[%emt 0:00:08]} a6 {[%emt 0:08:03]} 11. Bc4 {[%emt 0:00:09]} b5 {[%emt 0:00:20]} 12. Bb3 {[%emt 0:00:07]} Bb7 {[%emt 0:04:09]} 13. Rc1 {[%emt 0:01:06]} h6 {[%emt 0:23:57]} (13... a5 $11) 14. e5 $14 {[%emt 0:17:43] White is slightly better.} Re8 $2 {[%emt 0:28:29] [#]} (14... a5 $1 $14) 15. Bxf7+ $1 $18 {[%emt 0:05:45][%mdl 512]} Kxf7 {[%emt 0:00:02]} 16. Qb3+ $1 {[%emt 0:00:04]} Kf8 $2 {[%emt 0:00:04]} (16... Nd5) 17. Nh4 $2 {[%emt 0:00:11]} (17. Ng5 $18 hxg5 18. f4) 17... Nxe5 $16 {[%emt 0:00:41] [#] Hoping for ...Qb6.} (17... Bxe5 $2 {loses.} 18. Nxg6+ Kg7 19. Nxe5 $18 (19. Bxe5+ Nxe5 20. Nxe5 Nd5 $16)) 18. f4 {[%emt 0:00:03] White has more active pieces.} ({White should try} 18. Bc7 $1 $16 {[%cal Rc7d8]} Bd5 19. Qg3) 18... Nf7 {[%emt 0:04:19][%mdl 8192] [#]} (18... Nc4 $1 $11 {and Black is okay.} 19. Nxc4 (19. Nxg6+ Kg8 $11) 19... Bd5) 19. f5 $1 $18 {[%emt 0:01:05]} g5 {[%emt 0:09:18]} (19... Nxd6 $142 20. fxg6+ Nef5 21. Nxf5 Re6) 20. f6 $1 {[%emt 0:00:33]} Kg8 {[%emt 0:06:06]} 21. fxe7 {[%emt 0:00:07]} Rxe7 {[%emt 0:00:10]} 22. Bxe7 {[%emt 0:00:07]} Qxe7 {[%emt 0:00:06]} 23. Rce1 {[%emt 0:00:14]} Be5 {[%emt 0:06:32] [#]} 24. Rxe5 $1 {[%emt 0:00:10][%mdl 512]} Qxe5 {[%emt 0:00:06]} (24... Re8 25. Rxe7) 25. Qxf7+ {[%emt 0:00:03]} Kh8 {[%emt 0:00:06]} 26. Ng6# {[%emt 1:15:09] Weighted Error Value: White=0.40/Black=1.50.  Loses game:     	---       	Black=1      Missed win:     	White=1     	---        Mistake:       	---       	Black=4      Inaccurate:     	White=1     	---        OK:         	White=1     	Black=2      Strong:       	White=3     	---        Brilliant:      	White=1     	---} 1-0

[Event "XVI Memorial Lezcano Montalvo 2024"]
[Site "Gran Canaria"]
[Date "2024.03.25"]
[Round "3.7"]
[White "Fiorito, Fabian"]
[Black "Tutisani, Noe"]
[Result "0-1"]
[ECO "D00"]
[WhiteElo "2251"]
[BlackElo "2405"]
[Annotator "TA"]
[PlyCount "92"]
[EventDate "2024.03.23"]
[EventType "swiss"]
[EventCountry "ESP"]
[SourceTitle "playchess.com"]
[Source "ChessBase"]
[SourceQuality "1"]
[TimeControl "5400+30"]

{[%evp 9,91,5,6,0,0,0,6,10,11,12,8,11,16,9,17,16,21,10,13,-13,0,0,28,22,15,-13,-26,-36,-52,-54,-50,-62,-58,-63,-43,-39,-24,-97,-84,-185,-185,-206,-137,-176,-200,-263,-135,-158,-170,-154,-127,-132,-135,-120,-120,-123,-117,-177,-185,-192,-193,-210,-229,-283,-299,-252,-281,-293,-262,-250,-256,-387,-322,-625,-810,-763,-763,-702,-600,-1354,-1408,-1455,-1416,-1071]} 1. d4 {[%emt 0:00:01]} Nf6 {[%emt 0:00:12]} 2. Nc3 {[%emt 0:00:40]} d5 {[%emt 0:00:09]} 3. Bf4 {[%emt 0:00:05]} Bf5 {[%emt 0:00:07]} 4. e3 {[%emt 0:00:44]} e6 {[%emt 0:00:08]} 5. Bd3 {[%emt 0:01:54]} c6 {[%emt 0:00:21]} 6. Nge2 {[%emt 0:03:03]} Nbd7 {[%emt 0:06:06]} 7. h3 {[%emt 0:02:16]} Bb4 {[%emt 0:04:04]} 8. O-O {[%emt 0:00:50] Die Stellung ist ausgeglichen.} Qe7 {[%emt 0:02:20]} 9. a3 {[%emt 0:02:32]} Bd6 {[%emt 0:02:19]} 10. Bxd6 {[%emt 0:00:04]} Qxd6 {[%emt 0:00:04]} 11. Bxf5 {[%emt 0:05:28]} exf5 {[%emt 0:00:06]} 12. b3 {[%emt 0:00:07]} h5 {[%emt 0:06:15]} 13. Qd3 {[%emt 0:02:02]} g6 {[%emt 0:00:59]} 14. f3 {[%emt 0:02:25]} O-O-O {[%emt 0:03:35]} 15. Nd1 {[%emt 0:04:07]} Qe6 {[%emt 0:13:31]} 16. Nf4 {[%emt 0:03:26]} Qe7 {[%emt 0:01:58]} 17. Ne2 {[%emt 0:00:11]} Kb8 {[%emt 0:05:43]} 18. c4 {[%emt 0:01:39]} c5 {[%emt 0:00:26]} 19. cxd5 {[%emt 0:06:11]} Nxd5 {[%emt 0:02:35]} 20. e4 {[%emt 0:03:14]} Rhe8 {[%emt 0:00:05][%cal Rf5e4]} 21. Ra2 {[%emt 0:12:04]} fxe4 {[%emt 0:04:57]} 22. fxe4 {[%emt 0:00:02]} Qxe4 {[%emt 0:00:09]} (22... N5f6 {vereinfacht} 23. Ndc3 Nxe4 24. Qxe4 Qxe4 25. Nxe4 Rxe4 26. dxc5 Ne5) 23. Qg3+ {[%emt 0:01:12]} (23. Qxe4 $11 {bleibt in der Remisbreite.} Rxe4 24. dxc5) 23... Ka8 $17 {[%emt 0:00:14] Schwarz steht aktiver.} 24. dxc5 {[%emt 0:03:27]} (24. Rd2 $17) 24... Nxc5 $19 {[%emt 0:02:08]} 25. Rd2 {[%emt 0:01:09][%cal Od1c3]} h4 {[%emt 0:05:04]} 26. Qf2 {[%emt 0:02:09]} Nxb3 {[%emt 0:03:07]} 27. Ndc3 {[%emt 0:02:31]} Nxc3 {[%emt 0:06:04]} (27... Nxd2 $19 28. Nxe4 Nxf1 (28... Rxe4 29. Re1 $14) 29. Qxh4 Nfe3) 28. Rxd8+ $17 {[%emt 0:00:02]} Rxd8 {[%emt 0:00:04]} 29. Nxc3 {[%emt 0:00:02]} Qc4 {[%emt 0:00:55]} 30. Qf6 {[%emt 0:02:15]} Rc8 {[%emt 0:31:45]} 31. Rd1 {[%emt 0:00:28]} a6 {[%emt 0:00:00]} (31... Qxc3 32. Qxc3 (32. Qxh4 $2 a6 $19) 32... Rb8 33. Qxb3 f6 34. Qf7 Rh8 35. Rd7 (35. Qxf6 Rb8 36. Rd8 a6 37. Rd7 Rc8 38. Qb6 Rb8 39. Qxg6 Rc8 40. Qb6 Rc1+ 41. Kh2 Rh1+ 42. Kxh1 Kb8 43. Qxb7#) 35... Rb8 36. Qxf6 (36. Qxg6 Rc8 37. Qxf6 Rc1+ 38. Kh2 Rc8 39. Qf3 Rb8 40. Qb3 a6 41. Qb6 Rh8 42. Qxb7#)) 32. Nd5 {[%emt 0:00:59]} Qc5+ {[%emt 0:00:00]} 33. Kh1 {[%emt 0:00:27] [#]} (33. Kh2 $17 Ka7 (33... Qxa3 34. Nb6+ Kb8 35. Qe5+ Ka7 36. Nxc8+ Ka8 37. Nb6+ Ka7 38. Nd7) 34. Qxh4) 33... Ka7 $1 $19 {[%emt 0:00:00]} (33... Qxa3 $2 {geht unter.} 34. Nb6+ (34. Qxh4 $2 {zu gefräßig.} Qc5 $19) 34... Ka7 35. Nxc8+ Kb8 36. Nb6 $18) 34. Qxh4 {[%emt 0:02:22]} Qxa3 {[%emt 0:00:00] Weiss muss nun ...Rc1 beachten.} 35. Qf6 {[%emt 0:37:52]} Qc5 {[%emt 0:00:00] Lässt Qb6+ nicht zu} 36. Rd3 {[%emt 0:00:00]} Rc6 {[%emt 0:00:00]} 37. Qxf7 {[%emt 0:00:00]} Rd6 {[%emt 0:00:00][%cal Ob3d2]} 38. Rxb3 {[%emt 0:00:00][%csl Gb3][%cal Rf7b7] [#]} Qxd5 {[%emt 0:00:00][%mdl 4096] Endspiel. KQR-KQR} 39. Qf2+ {[%emt 0:00:00]} Qd4 {[%emt 0:00:00]} 40. Qf7 {[%emt 0:00:00]} (40. Qg3 $142) 40... Rd7 {[%emt 0:00:00]} 41. Qe6 {[%emt 0:00:00]} (41. Qe8) 41... Qd1+ {[%emt 0:00:00] Schwarz steht klar auf Gewinn.} 42. Kh2 {[%emt 0:00:00]} Qd6+ {[%emt 0:00:00]} 43. Qxd6 {[%emt 0:00:00]} Rxd6 {[%emt 0:00:00]} 44. h4 {[%emt 0:00:00]} a5 {[%emt 0:00:00] Zielt auf ...a4 ab.} 45. g4 {[%emt 0:00:00]} a4 {[%emt 0:00:00]} 46. Rf3 {[%emt 0:00:00]} Ra6 {[%emt 0:00:00] Gewichteter Fehlerwert: Weiß=0.39/Schwarz=0.11 (sehr präzise) .  Fehler:       	Weiß=5     	Schwarz=1     Ungenau:       	Weiß=3     	Schwarz=2     OK:         	Weiß=11    	Schwarz=17    Bester:       	Weiß=3     	Schwarz=2} 0-1

[Event "XVI Memorial Lezcano Montalvo 2024"]
[Site "Gran Canaria"]
[Date "2024.03.25"]
[Round "3.8"]
[White "Lianes Garcia, Marcos"]
[Black "Hernandez Leon, Alberto"]
[Result "1-0"]
[ECO "E05"]
[WhiteElo "2398"]
[BlackElo "2207"]
[Annotator "TA"]
[PlyCount "79"]
[EventDate "2024.03.23"]
[EventType "swiss"]
[EventCountry "ESP"]
[SourceTitle "playchess.com"]
[Source "ChessBase"]
[SourceQuality "1"]
[TimeControl "5400+30"]

{[%evp 13,79,7,21,9,6,-3,-3,0,-7,-15,43,-97,-90,-93,-17,-19,-18,-17,35,41,45,50,54,60,61,47,256,260,271,158,193,164,427,390,414,205,202,208,191,171,389,396,404,402,408,410,407,399,384,384,669,661,629,614,989,979,891,741,741,734,1165,1008,29956,29963,29965,29963,29975,29975]} 1. d4 {[%emt 0:00:49]} d5 {[%emt 0:00:29]} 2. Nf3 {[%emt 0:00:24]} Nf6 {[%emt 0:00:39]} 3. g3 {[%emt 0:00:45]} e6 {[%emt 0:01:01]} 4. Bg2 {[%emt 0:01:16]} Be7 {[%emt 0:01:20]} 5. O-O {[%emt 0:00:33]} O-O {[%emt 0:00:10]} 6. c4 {[%emt 0:00:16]} dxc4 {[%emt 0:01:59]} 7. Qc2 {[%emt 0:00:26]} b5 {[%emt 0:03:10]} 8. a4 {[%emt 0:00:13]} b4 {[%emt 0:00:17]} 9. Ne5 {[%emt 0:06:51]} (9. Qxc4 Ba6 10. Qc2 Nbd7) 9... Qxd4 $1 {[%emt 0:07:34]} 10. Bxa8 {[%emt 0:00:19] The position is equal.} (10. Bf4 {is interesting.} Nd5 11. Rd1 Qc5 12. Nd2) 10... Qxe5 {[%emt 0:00:16]} 11. Bf4 {[%emt 0:00:22]} Qc5 {[%emt 0:09:07]} ({Black should play} 11... Qh5 $11 12. Bf3 (12. Qxc4 Ng4 $17) 12... Ng4 13. Bxg4 (13. Bxc7 $2 Qxh2#) 13... Qxg4) 12. Bf3 {[%emt 0:11:15]} (12. Nd2 $14 {keeps the upper hand.}) 12... Nd5 $17 {[%emt 0:04:40]} 13. Nd2 {[%emt 0:07:08][%cal Bb1d2,Bd2c4,Bc4e5,Be5d7,Bd7f8][%mdl 32] [#]} Nxf4 {[%emt 0:07:01]} (13... Ba6 $1 $17 {Strongly threatening ...Nc6.} 14. Rac1 Nc6 (14... Nxf4 15. gxf4 Qd6 16. Nxc4 $11)) 14. gxf4 $11 {[%emt 0:00:27]} Ba6 {[%emt 0:02:00]} 15. Rac1 {[%emt 0:04:14][%cal Rd2c4]} Nc6 {[%emt 0:03:28]} (15... Qd6 $11) 16. Bxc6 $1 $14 {[%emt 0:13:53]} Qxc6 {[%emt 0:00:06]} 17. Nxc4 {[%emt 0:00:11]} Bb7 {[%emt 0:06:45]} 18. f3 {[%emt 0:00:34]} Qc5+ {[%emt 0:09:32]} 19. Kh1 {[%emt 0:03:27]} Bf6 $2 {[%emt 0:01:30] [#] Loses the game.} ({Better is} 19... Qh5 $14) 20. Ne5 $1 $18 {[%emt 0:05:00][%mdl 512]} Qd4 {[%emt 0:02:55]} (20... Qxc2 21. Rxc2) 21. Qxc7 {[%emt 0:12:03]} ({White should try} 21. Qc5 $18 Qxf4 (21... Qxb2 $2 22. Rc2 $18) 22. Nd7 (22. Qxc7 $2 Bxe5 $19)) 21... Ba6 $16 {[%emt 0:01:16]} 22. Nd7 {[%emt 0:12:40]} Bxe2 $2 {[%emt 0:00:34]} (22... Bd8 {is a better defense.} 23. Qc6 Bxe2) 23. Nxf8 $18 {[%emt 0:01:38]} Qd3 {[%emt 0:00:57] [#]} 24. Qc2 {[%emt 0:13:58]} Bxf3+ {[%emt 0:04:39] [#]} 25. Rxf3 $1 {[%emt 0:00:48]} Qxf3+ {[%emt 0:00:02]} 26. Qg2 {[%emt 0:00:05]} Qxg2+ {[%emt 0:01:38]} (26... Qe3 {keeps fighting.} 27. Rd1 (27. Qg1 Qd3 $16) 27... Qb3) 27. Kxg2 {[%emt 0:00:01]} Kxf8 {[%emt 0:00:08][%mdl 4096] Endgame. KR-KB} 28. Rc8+ {[%emt 0:00:19]} Ke7 {[%emt 0:00:09]} 29. Rc7+ {[%emt 0:01:05]} Kd6 {[%emt 0:03:04]} 30. Rxa7 {[%emt 0:00:04]} (30. Rxf7 Bxb2 31. Rxa7 Kc5 $18) 30... Bxb2 {[%emt 0:00:08]} 31. Rb7 {[%emt 0:00:12]} (31. Rxf7 Kc5 $16) 31... Kc5 $2 {[%emt 0:07:02] Wards off a5} (31... Bd4 32. Rxb4 Bc3) 32. a5 {[%emt 0:01:41]} (32. Rxf7 Bd4 $18 (32... b3 33. Rb7 $14)) 32... Bd4 {[%emt 0:00:54]} 33. Kf3 {[%emt 0:00:49][%cal Oa5a6] a6! is the strong threat.} (33. Rxf7 Kb5 $16) 33... Kc4 {[%emt 0:01:16]} 34. Ke2 {[%emt 0:00:51]} (34. Rxf7 b3 35. Rb7 b2 $11) 34... b3 {[%emt 0:00:02]} 35. Kd1 {[%emt 0:00:51]} ({Not} 35. Rxf7 b2 36. Rb7 Bc3 $11) 35... Kc3 {[%emt 0:04:34]} 36. Kc1 {[%emt 0:00:20]} ({And not} 36. Rxf7 b2 37. Rc7+ (37. Rb7 Bc5 $11) 37... Bc5 38. Rxc5+ Kb4 $11) 36... Be3+ {[%emt 0:00:07]} 37. Kb1 {[%emt 0:00:01]} Bxf4 {[%emt 0:00:10]} 38. a6 {[%emt 0:00:07] White mates.} Be3 {[%emt 0:00:07]} 39. Rxf7 {[%emt 0:00:11]} e5 {[%emt 0:00:49]} 40. Rf3 {[%emt 0:00:41] Weighted Error Value: White=0.33/Black=0.69.  Loses game:     	---       	Black=1      Mistake:       	White=3     	Black=6      OK:         	White=5     	Black=9      Best:        	White=6     	Black=4      Strong:       	White=1     	Black=1      Brilliant:      	White=2     	---} 1-0

[Event "XVI Memorial Lezcano Montalvo 2024"]
[Site "Gran Canaria"]
[Date "2024.03.25"]
[Round "3.9"]
[White "Damia, Angelo"]
[Black "Sanz Wawer, Daniel"]
[Result "0-1"]
[ECO "B18"]
[WhiteElo "2240"]
[BlackElo "2397"]
[Annotator "TA"]
[PlyCount "90"]
[EventDate "2024.03.23"]
[EventType "swiss"]
[EventCountry "ESP"]
[SourceTitle "playchess.com"]
[Source "ChessBase"]
[SourceQuality "1"]
[TimeControl "5400+30"]

{[%evp 18,90,0,-7,6,-25,-6,-31,-39,-45,-47,-48,-62,-72,-54,-57,-22,-29,-24,-41,-50,-47,-50,-51,-23,-27,-26,-51,-33,-54,-32,-38,-48,-63,-54,-62,-19,-32,-25,-27,-27,-39,-48,-46,-42,-73,-81,-127,-49,-38,-58,-43,-44,-36,-46,-45,-29,-355,-336,-512,-510,-517,-491,-752,-745,-1598,-1517,-29982,-29983,-29978,-29978,-5432,-4848,-4133,-4133]} 1. e4 {[%emt 0:00:03]} c6 {[%emt 0:00:07]} 2. d4 {[%emt 0:00:05]} d5 {[%emt 0:00:05]} 3. Nc3 {[%emt 0:03:22]} dxe4 {[%emt 0:00:15]} 4. Nxe4 {[%emt 0:00:07]} Bf5 {[%emt 0:00:04]} 5. Ng3 {[%emt 0:00:04]} Bg6 {[%emt 0:00:06]} 6. h4 {[%emt 0:00:39]} h6 {[%emt 0:00:11]} 7. N1e2 {[%emt 0:00:53][%cal Bg1e2,Be2f4,Bf4e6,Be6g7][%mdl 32]} Nf6 {[%emt 0:01:34]} 8. Nf4 {[%emt 0:00:51]} Bh7 {[%emt 0:00:27]} 9. Bc4 {[%emt 0:03:10]} e6 {[%emt 0:07:46]} 10. c3 {[%emt 0:05:00]} Nbd7 {[%emt 0:06:56]} 11. Qe2 {[%emt 0:19:32]} Bd6 {[%emt 0:09:11]} 12. Bxe6 {[%emt 0:02:43]} fxe6 {[%emt 0:11:46] Schwarz steht etwas besser.} 13. Nxe6 {[%emt 0:00:04]} Qe7 {[%emt 0:00:20]} 14. Nxg7+ {[%emt 0:00:11]} Kf7 {[%emt 0:02:21]} 15. Qxe7+ {[%emt 0:03:54]} Bxe7 {[%emt 0:01:03]} (15... Kxe7 16. N7f5+ Bxf5 17. Nxf5+ Ke6 18. Nxd6 Kxd6 19. f3) 16. N7f5 {[%emt 0:12:38]} h5 {[%emt 0:00:48]} 17. Nxe7 {[%emt 0:03:59] Schwarz muss nun Nef5 beachten.} Rae8 {[%emt 0:02:46]} 18. f3 {[%emt 0:00:07]} Rxe7+ {[%emt 0:00:16]} 19. Kf2 {[%emt 0:00:10] Weiss ist schwach auf den weissen Feldern} c5 {[%emt 0:04:09]} 20. Be3 {[%emt 0:02:30]} cxd4 {[%emt 0:07:33]} 21. Bxd4 {[%emt 0:00:38]} Ne5 {[%emt 0:00:14][%cal Bd7e5,Be5c4,Bc4e3,Be3c2][%mdl 32]} 22. Kg1 {[%emt 0:05:34]} b6 {[%emt 0:06:10]} 23. Kh2 {[%emt 0:00:14]} Rhe8 {[%emt 0:01:10]} (23... Rd8 {ist vielschichtiger.} 24. Rae1 Rd5 25. Re2 Ng6) 24. a4 {[%emt 0:00:43]} Bg6 {[%emt 0:01:30]} 25. Rhd1 {[%emt 0:01:27]} Nc4 {[%emt 0:04:39]} 26. b3 {[%emt 0:12:18]} Ne3 {[%emt 0:00:33] Schwarz steht aktiver.} 27. Rd2 {[%emt 0:01:29]} Nfd5 {[%emt 0:02:20][%cal Bf6d5,Bd5b4,Bb4c6][%mdl 32]} 28. c4 {[%emt 0:01:08]} Nb4 {[%emt 0:07:12]} 29. a5 {[%emt 0:03:56]} Nec2 {[%emt 0:05:05] Hervorragende Reitkunst.} 30. Ra4 {[%emt 0:03:06]} Nc6 {[%emt 0:03:59][%csl LRa5,LRd4]} 31. Bc3 {[%emt 0:00:19][%cal Oc4c5]} Re3 {[%emt 0:00:48]} 32. axb6 {[%emt 0:08:28]} (32. Rd7+ $142 R8e7 33. Rxe7+ Kxe7 34. axb6 axb6 (34... Rxc3 35. bxa7 Nxa7 36. Rxa7+ Kf8 37. Ra5 $16) 35. Bd2 Rxb3 36. Ra8) 32... axb6 {[%emt 0:00:29]} (32... Rxc3 $17 33. bxa7 Ra8 (33... Rxb3 $2 34. a8=Q $18) 34. Rd7+ Kf8) 33. Rd6 $15 {[%emt 0:03:47]} R8e6 {[%emt 0:00:44] Tanz auf der Rasierklinge.} 34. Rd7+ {[%emt 0:00:24]} Ke8 {[%emt 0:07:52]} 35. Rg7 {[%emt 0:00:30] Und jetzt Ra8+ wäre schön.} Kf8 $36 {[%emt 0:01:02][%mdl 2048] Schwarz drückt.} 36. Ra8+ {[%emt 0:01:32]} Be8 $1 {[%emt 0:01:59]} (36... Re8 37. Ra2 (37. Rxe8+ Bxe8 38. Bf6 Re6 $11) 37... Rxc3 38. Rxg6 $14) 37. Rb7 $2 {[%emt 0:01:56][%mdl 8192] Verliert die Partie.} Rxc3 $19 {[%emt 0:00:27]} 38. Rxb6 {[%emt 0:00:35]} (38. Rh7 $142 Ne3 (38... Rxb3 39. Nxh5 b5 40. Nf4 $17) 39. Nxh5) 38... N2d4 {[%emt 0:03:45]} 39. b4 {[%emt 0:00:45]} Rxc4 {[%emt 0:01:24]} 40. Nxh5 {[%emt 0:00:45] [#]} (40. b5 $142 Ne5 41. Rxe6 Nxe6 42. Ne4) 40... Nxf3+ $1 {[%emt 0:00:46]} 41. Kg3 {[%emt 0:00:30]} (41. gxf3 Rxh4+) 41... Nxh4 {[%emt 0:00:26]} 42. Nf4 {[%emt 0:00:09] Pariert Rg6+.} Nf5+ {[%emt 0:00:19]} 43. Kg4 {[%emt 0:00:02]} Ne3+ {[%emt 0:00:26]} ({Schlechter ist} 43... Rxb4 44. Rxb4 Nh6+ 45. Kf3 $11) 44. Kf3 {[%emt 0:00:31] [#]} Rxf4+ $1 {[%emt 0:00:17]} 45. Kxf4 {[%emt 0:00:06]} Nd5+ {[%emt 0:00:02] Gewichteter Fehlerwert: Weiß=0.63/Schwarz=0.26 (präzise) .  Verlustzug:     	Weiß=1     	---        Fehler:       	Weiß=3     	Schwarz=1     Ungenau:       	Weiß=3     	Schwarz=3     OK:         	Weiß=9     	Schwarz=17    Bester:       	Weiß=2     	Schwarz=2     Stark:        	---       	Schwarz=1} 0-1